[Event "Titled Tuesday Blitz February 21 Late 2023"]
[White "Gerbelli Neto, Eduardo"]
[Black "Womacka, Mathias"]
[WhiteFideId "2103281"]
[BlackFideId "4611390"]
[WhiteElo "2114"]
[BlackElo "2396"]
[Result "0-1"]
[Round "10"]
[TimeControl "180+2"]
[Date "2023.02.21"]
[WhiteClock "0:00:05"]
[BlackClock "0:00:14"]

1. e4 {[%clk 0:02:59]}  c5 {[%clk 0:02:59]} 2. Nc3 {[%clk 0:02:59]}  Nc6 {[%clk 0:02:58]} 3. f4 {[%clk 0:02:59]}  g6 {[%clk 0:02:57]} 4. Nf3 {[%clk 0:02:59]}  Bg7 {[%clk 0:02:57]} 5. Bc4 {[%clk 0:03:00]}  e6 {[%clk 0:02:55]} 6. f5 {[%clk 0:03:00]}  Nge7 {[%clk 0:02:56]} 7. fxe6 {[%clk 0:03:00]}  dxe6 {[%clk 0:02:57]} 8. d3 {[%clk 0:02:57]}  O-O {[%clk 0:02:56]} 9. O-O {[%clk 0:02:58]}  Na5 {[%clk 0:02:56]} 10. Qe1 {[%clk 0:02:57]}  Nxc4 {[%clk 0:02:38]} 11. dxc4 {[%clk 0:02:58]}  b6 {[%clk 0:02:35]} 12. Bg5 {[%clk 0:02:56]}  f6 {[%clk 0:02:32]} 13. Rd1 {[%clk 0:02:55]}  Qc7 {[%clk 0:02:31]} 14. Nb5 {[%clk 0:02:36]}  Qb8 {[%clk 0:02:31]} 15. Bh4 {[%clk 0:02:33]}  a6 {[%clk 0:02:29]} 16. Nd6 {[%clk 0:02:26]}  Ra7 {[%clk 0:02:16]} 17. e5 {[%clk 0:02:16]}  fxe5 {[%clk 0:02:14]} 18. Nxe5 {[%clk 0:01:50]}  Rxf1+ {[%clk 0:02:12]} 19. Qxf1 {[%clk 0:01:38]}  Nf5 {[%clk 0:02:03]} 20. Nc6 {[%clk 0:01:32]}  Bd4+ {[%clk 0:01:24]} 21. Rxd4 {[%clk 0:01:25]}  cxd4 {[%clk 0:01:10]} 22. Nxb8 {[%clk 0:01:25]}  Nxd6 {[%clk 0:01:09]} 23. Nc6 {[%clk 0:01:18]}  Rf7 {[%clk 0:01:08]} 24. Qe2 {[%clk 0:01:08]}  Nf5 {[%clk 0:01:06]} 25. Bf2 {[%clk 0:01:02]}  Bb7 {[%clk 0:00:58]} 26. Qxe6 {[%clk 0:00:59]}  Kg7 {[%clk 0:00:49]} 27. Qxf7+ {[%clk 0:00:48]}  Kxf7 {[%clk 0:00:48]} 28. Nd8+ {[%clk 0:00:49]}  Kf6 {[%clk 0:00:47]} 29. Nxb7 {[%clk 0:00:50]}  Ke7 {[%clk 0:00:39]} 30. g4 {[%clk 0:00:49]}  Ne3 {[%clk 0:00:38]} 31. c3 {[%clk 0:00:45]}  dxc3 {[%clk 0:00:32]} 32. bxc3 {[%clk 0:00:43]}  Nxc4 {[%clk 0:00:31]} 33. Bh4+ {[%clk 0:00:24]}  Kd7 {[%clk 0:00:31]} 34. Nd8 {[%clk 0:00:24]}  Ne5 {[%clk 0:00:29]} 35. h3 {[%clk 0:00:19]}  Nf3+ {[%clk 0:00:28]} 36. Kf2 {[%clk 0:00:19]}  Nxh4 {[%clk 0:00:29]} 37. Nf7 {[%clk 0:00:19]}  Ke7 {[%clk 0:00:21]} 38. Ng5 {[%clk 0:00:18]}  h6 {[%clk 0:00:20]} 39. Ne4 {[%clk 0:00:18]}  g5 {[%clk 0:00:20]} 40. c4 {[%clk 0:00:17]}  Ke6 {[%clk 0:00:19]} 41. Nc3 {[%clk 0:00:17]}  Ke5 {[%clk 0:00:19]} 42. a4 {[%clk 0:00:14]}  Kd4 {[%clk 0:00:18]} 43. Nd5 {[%clk 0:00:15]}  Kxc4 {[%clk 0:00:14]} 44. Nxb6+ {[%clk 0:00:15]}  Kb4 {[%clk 0:00:14]} 45. Ke3 {[%clk 0:00:12]}  Ka5 {[%clk 0:00:14]} 46. Nd5 {[%clk 0:00:09]}  Kxa4 {[%clk 0:00:14]} 47. Ke4 {[%clk 0:00:10]}  Kb3 {[%clk 0:00:13]} 48. Nb6 {[%clk 0:00:08]}  a5 {[%clk 0:00:14]} 49. Ke5 {[%clk 0:00:08]}  Ng2 {[%clk 0:00:13]} 50. Kf6 {[%clk 0:00:08]}  Nf4 {[%clk 0:00:13]} 51. Kg7 {[%clk 0:00:06]}  Nxh3 {[%clk 0:00:12]} 52. Kxh6 {[%clk 0:00:07]}  a4 {[%clk 0:00:12]} 53. Nxa4 {[%clk 0:00:04]}  Kxa4 {[%clk 0:00:13]} 54. Kg6 {[%clk 0:00:03]}  Kb4 {[%clk 0:00:14]} 55. Kf6 {[%clk 0:00:04]}  Kc4 {[%clk 0:00:14]} 56. Ke5 {[%clk 0:00:05]}  Kd3 {[%clk 0:00:13]} 57. Kf5 {[%clk 0:00:05]}  Ke3 {[%clk 0:00:14]} 58. Ke5 {[%clk 0:00:04]}  Kf3 {[%clk 0:00:14]} 59. Kf5 {[%clk 0:00:05]}  Kg3 {[%clk 0:00:14]} 0-1


[Site "https://www.chess.com"]

[Event "Titled Tuesday Blitz February 21 Late 2023"]
[White "Hajiyev, Kanan"]
[Black "Lucassen, Mickey"]
[WhiteFideId "13404148"]
[BlackFideId "12919110"]
[WhiteElo "2197"]
[BlackElo "2023"]
[Result "1/2-1/2"]
[Round "10"]
[TimeControl "180+2"]
[Date "2023.02.21"]
[WhiteClock "0:00:11"]
[BlackClock "0:00:10"]

1. d4 {[%clk 0:02:58]}  Nf6 {[%clk 0:03:00]} 2. Nf3 {[%clk 0:02:58]}  g6 {[%clk 0:02:59]} 3. c4 {[%clk 0:02:58]}  Bg7 {[%clk 0:02:58]} 4. Nc3 {[%clk 0:02:59]}  d5 {[%clk 0:02:59]} 5. cxd5 {[%clk 0:03:00]}  Nxd5 {[%clk 0:02:59]} 6. e4 {[%clk 0:03:00]}  Nxc3 {[%clk 0:03:00]} 7. bxc3 {[%clk 0:03:01]}  c5 {[%clk 0:03:00]} 8. Bb5+ {[%clk 0:03:02]}  Nc6 {[%clk 0:03:00]} 9. O-O {[%clk 0:02:27]}  O-O {[%clk 0:02:57]} 10. dxc5 {[%clk 0:02:17]}  Qa5 {[%clk 0:02:52]} 11. Qa4 {[%clk 0:02:09]}  Qxc3 {[%clk 0:02:23]} 12. Bd2 {[%clk 0:02:02]}  Qxc5 {[%clk 0:02:15]} 13. Rac1 {[%clk 0:02:02]}  Qh5 {[%clk 0:02:05]} 14. Bxc6 {[%clk 0:01:54]}  bxc6 {[%clk 0:02:05]} 15. Qxc6 {[%clk 0:01:46]}  Bg4 {[%clk 0:01:55]} 16. e5 {[%clk 0:01:41]}  Bxf3 {[%clk 0:01:48]} 17. Qxf3 {[%clk 0:01:42]}  Qxf3 {[%clk 0:01:48]} 18. gxf3 {[%clk 0:01:43]}  Bxe5 {[%clk 0:01:48]} 19. Rfe1 {[%clk 0:01:43]}  Bd6 {[%clk 0:01:46]} 20. Bg5 {[%clk 0:01:41]}  f6 {[%clk 0:01:44]} 21. Be3 {[%clk 0:01:32]}  Rfc8 {[%clk 0:01:37]} 22. a4 {[%clk 0:01:13]}  a5 {[%clk 0:01:22]} 23. Kf1 {[%clk 0:01:08]}  Ba3 {[%clk 0:01:16]} 24. Ra1 {[%clk 0:00:52]}  Bb4 {[%clk 0:01:11]} 25. Re2 {[%clk 0:00:53]}  Rc4 {[%clk 0:01:08]} 26. Bd2 {[%clk 0:00:48]}  Kf7 {[%clk 0:01:05]} 27. Bxb4 {[%clk 0:00:46]}  Rxb4 {[%clk 0:01:03]} 28. Rc2 {[%clk 0:00:38]}  Rb3 {[%clk 0:00:53]} 29. Kg2 {[%clk 0:00:38]}  h5 {[%clk 0:00:34]} 30. Rc5 {[%clk 0:00:35]}  Rb4 {[%clk 0:00:33]} 31. Rc7 {[%clk 0:00:33]}  f5 {[%clk 0:00:20]} 32. Ra2 {[%clk 0:00:33]}  Kf6 {[%clk 0:00:20]} 33. Rc6+ {[%clk 0:00:32]}  e6 {[%clk 0:00:19]} 34. Re2 {[%clk 0:00:32]}  Re8 {[%clk 0:00:19]} 35. Ra2 {[%clk 0:00:31]}  Rd8 {[%clk 0:00:13]} 36. Ra6 {[%clk 0:00:30]}  Rd5 {[%clk 0:00:12]} 37. Re2 {[%clk 0:00:27]}  Re5 {[%clk 0:00:10]} 38. Rxe5 {[%clk 0:00:26]}  Kxe5 {[%clk 0:00:10]} 39. Rxa5+ {[%clk 0:00:27]}  Kf4 {[%clk 0:00:11]} 40. Ra6 {[%clk 0:00:25]}  e5 {[%clk 0:00:11]} 41. a5 {[%clk 0:00:17]}  Ra4 {[%clk 0:00:12]} 42. Rxg6 {[%clk 0:00:17]}  Rxa5 {[%clk 0:00:12]} 43. h4 {[%clk 0:00:17]}  e4 {[%clk 0:00:09]} 44. fxe4 {[%clk 0:00:16]}  fxe4 {[%clk 0:00:09]} 45. Rg8 {[%clk 0:00:12]}  Rf5 {[%clk 0:00:08]} 46. Rg3 {[%clk 0:00:11]}  Ke5 {[%clk 0:00:08]} 47. Ra3 {[%clk 0:00:06]}  Kf4 {[%clk 0:00:06]} 48. Ra4 {[%clk 0:00:05]}  Re5 {[%clk 0:00:06]} 49. f3 {[%clk 0:00:04]}  Ke3 {[%clk 0:00:04]} 50. fxe4 {[%clk 0:00:04]}  Rxe4 {[%clk 0:00:05]} 51. Ra5 {[%clk 0:00:04]}  Rg4+ {[%clk 0:00:04]} 52. Kh3 {[%clk 0:00:05]}  Kf3 {[%clk 0:00:02]} 53. Rxh5 {[%clk 0:00:05]}  Rg1 {[%clk 0:00:02]} 54. Kh2 {[%clk 0:00:05]}  Rg7 {[%clk 0:00:02]} 55. Rf5+ {[%clk 0:00:06]}  Kg4 {[%clk 0:00:02]} 56. Re5 {[%clk 0:00:04]}  Kxh4 {[%clk 0:00:02]} 57. Re4+ {[%clk 0:00:04]}  Kg5 {[%clk 0:00:02]} 58. Kh3 {[%clk 0:00:05]}  Kg6 {[%clk 0:00:03]} 59. Rg4+ {[%clk 0:00:04]}  Kf6 {[%clk 0:00:03]} 60. Rf4+ {[%clk 0:00:05]}  Ke6 {[%clk 0:00:03]} 61. Rf2 {[%clk 0:00:05]}  Re7 {[%clk 0:00:04]} 62. Re2+ {[%clk 0:00:05]}  Kd7 {[%clk 0:00:05]} 63. Rf2 {[%clk 0:00:06]}  Re6 {[%clk 0:00:05]} 64. Kg4 {[%clk 0:00:07]}  Kd6 {[%clk 0:00:06]} 65. Kf5 {[%clk 0:00:07]}  Re7 {[%clk 0:00:06]} 66. Rd2+ {[%clk 0:00:07]}  Kc7 {[%clk 0:00:06]} 67. Kf6 {[%clk 0:00:08]}  Rd7 {[%clk 0:00:07]} 68. Rc2+ {[%clk 0:00:08]}  Kd6 {[%clk 0:00:07]} 69. Rd2+ {[%clk 0:00:08]}  Kc6 {[%clk 0:00:08]} 70. Re2 {[%clk 0:00:08]}  Rd6+ {[%clk 0:00:08]} 71. Ke5 {[%clk 0:00:09]}  Rd5+ {[%clk 0:00:08]} 72. Ke4 {[%clk 0:00:10]}  Rd6 {[%clk 0:00:09]} 73. Rc2+ {[%clk 0:00:10]}  Kd7 {[%clk 0:00:10]} 74. Ke5 {[%clk 0:00:11]}  Re6+ {[%clk 0:00:11]} 75. Kd5 {[%clk 0:00:11]}  Rd6+ {[%clk 0:00:11]} 76. Ke5 {[%clk 0:00:11]}  Re6+ {[%clk 0:00:12]} 77. Kf5 {[%clk 0:00:11]}  Rd6 {[%clk 0:00:12]} 78. Ra2 {[%clk 0:00:12]}  Rc6 {[%clk 0:00:11]} 79. Ra7+ {[%clk 0:00:12]}  Rc7 {[%clk 0:00:10]} 80. Rxc7+ {[%clk 0:00:11]}  Kxc7 {[%clk 0:00:10]} 1/2-1/2


[Site "https://www.chess.com"]

[Event "Titled Tuesday Blitz February 21 Late 2023"]
[White "Lorenzo De La Riva, Lazaro"]
[Black "Buchenau, Frank"]
[WhiteFideId "2268809"]
[BlackFideId "4604350"]
[WhiteElo "2404"]
[BlackElo "2222"]
[Result "1-0"]
[Round "10"]
[TimeControl "180+2"]
[Date "2023.02.21"]
[WhiteClock "0:00:19"]
[BlackClock "0:00:01"]

1. d4 {[%clk 0:02:55]}  e6 {[%clk 0:03:00]} 2. Nc3 {[%clk 0:02:55]}  Nf6 {[%clk 0:03:00]} 3. Bf4 {[%clk 0:02:54]}  d5 {[%clk 0:02:59]} 4. Nb5 {[%clk 0:02:53]}  Na6 {[%clk 0:02:58]} 5. e3 {[%clk 0:02:52]}  c6 {[%clk 0:02:58]} 6. Nc3 {[%clk 0:02:51]}  Bb4 {[%clk 0:02:57]} 7. Ne2 {[%clk 0:02:50]}  O-O {[%clk 0:02:57]} 8. a3 {[%clk 0:02:50]}  Bd6 {[%clk 0:02:54]} 9. Bg5 {[%clk 0:02:39]}  e5 {[%clk 0:02:49]} 10. Ng3 {[%clk 0:02:30]}  Nc7 {[%clk 0:02:48]} 11. Bd3 {[%clk 0:02:27]}  e4 {[%clk 0:02:44]} 12. Be2 {[%clk 0:02:24]}  Ne6 {[%clk 0:02:43]} 13. Bxf6 {[%clk 0:02:20]}  Qxf6 {[%clk 0:02:44]} 14. Nh5 {[%clk 0:02:12]}  Qg5 {[%clk 0:02:37]} 15. g3 {[%clk 0:02:10]}  g6 {[%clk 0:02:32]} 16. h4 {[%clk 0:02:10]}  Qe7 {[%clk 0:02:31]} 17. Nf4 {[%clk 0:02:09]}  Nxf4 {[%clk 0:02:23]} 18. gxf4 {[%clk 0:02:09]}  Bf5 {[%clk 0:02:10]} 19. h5 {[%clk 0:02:07]}  b5 {[%clk 0:02:06]} 20. Nb1 {[%clk 0:02:03]}  a5 {[%clk 0:02:04]} 21. Nd2 {[%clk 0:02:03]}  b4 {[%clk 0:01:47]} 22. a4 {[%clk 0:02:00]}  Rfd8 {[%clk 0:01:38]} 23. c4 {[%clk 0:01:55]}  bxc3 {[%clk 0:01:36]} 24. bxc3 {[%clk 0:01:55]}  Rab8 {[%clk 0:01:35]} 25. Nf1 {[%clk 0:01:49]}  Rb2 {[%clk 0:01:20]} 26. Ng3 {[%clk 0:01:48]}  Bd7 {[%clk 0:01:10]} 27. c4 {[%clk 0:01:45]}  Rdb8 {[%clk 0:01:06]} 28. c5 {[%clk 0:01:41]}  Bc7 {[%clk 0:01:00]} 29. Kf1 {[%clk 0:01:34]}  Qd8 {[%clk 0:00:45]} 30. hxg6 {[%clk 0:01:28]}  fxg6 {[%clk 0:00:43]} 31. Bg4 {[%clk 0:01:27]}  Qc8 {[%clk 0:00:35]} 32. Be2 {[%clk 0:01:12]}  Qb7 {[%clk 0:00:29]} 33. Kg2 {[%clk 0:01:08]}  Qb3 {[%clk 0:00:27]} 34. Qg1 {[%clk 0:00:54]}  h5 {[%clk 0:00:09]} 35. Qh2 {[%clk 0:00:35]}  Rxe2 {[%clk 0:00:09]} 36. Nxe2 {[%clk 0:00:34]}  Bg4 {[%clk 0:00:10]} 37. Rhe1 {[%clk 0:00:28]}  Bf3+ {[%clk 0:00:09]} 38. Kg1 {[%clk 0:00:27]}  Qc2 {[%clk 0:00:09]} 39. Ng3 {[%clk 0:00:26]}  Rb2 {[%clk 0:00:07]} 40. Rf1 {[%clk 0:00:25]}  Qd2 {[%clk 0:00:07]} 41. Qh4 {[%clk 0:00:24]}  Kf7 {[%clk 0:00:06]} 42. Qg5 {[%clk 0:00:23]}  Rb8 {[%clk 0:00:02]} 43. f5 {[%clk 0:00:21]}  gxf5 {[%clk 0:00:01]} 44. Qxf5+ {[%clk 0:00:22]}  Ke7 {[%clk 0:00:01]} 45. Qh7+ {[%clk 0:00:21]}  Kd8 {[%clk 0:00:01]} 46. Nf5 {[%clk 0:00:19]} 1-0


[Site "https://www.chess.com"]

[Event "Titled Tuesday Blitz February 21 Late 2023"]
[White "Comas Fabrego, Lluis"]
[Black "Poeta, Caio Medeiros"]
[WhiteFideId "2200325"]
[BlackFideId "2142660"]
[WhiteElo "2424"]
[BlackElo "2088"]
[Result "0-1"]
[Round "10"]
[TimeControl "180+2"]
[Date "2023.02.21"]
[WhiteClock "0:01:38"]
[BlackClock "0:02:35"]

1. Nf3 {[%clk 0:03:00]}  Nf6 {[%clk 0:02:59]} 2. c4 {[%clk 0:03:00]}  c5 {[%clk 0:02:59]} 3. Nc3 {[%clk 0:02:59]}  d5 {[%clk 0:02:58]} 4. cxd5 {[%clk 0:02:58]}  Nxd5 {[%clk 0:02:59]} 5. e4 {[%clk 0:02:58]}  Nb4 {[%clk 0:02:56]} 6. d4 {[%clk 0:02:51]}  cxd4 {[%clk 0:02:56]} 7. Bb5+ {[%clk 0:02:51]}  Bd7 {[%clk 0:02:48]} 8. Nxd4 {[%clk 0:02:35]}  e5 {[%clk 0:02:44]} 9. Nc2 {[%clk 0:01:47]}  Bxb5 {[%clk 0:02:37]} 10. Qxd8+ {[%clk 0:01:45]}  Kxd8 {[%clk 0:02:37]} 11. Nxb4 {[%clk 0:01:46]}  Bxb4 {[%clk 0:02:36]} 12. Bd2 {[%clk 0:01:44]}  Bxc3 {[%clk 0:02:35]} 13. Bxc3 {[%clk 0:01:44]}  f6 {[%clk 0:02:35]} 14. O-O-O+ {[%clk 0:01:44]}  Ke7 {[%clk 0:02:35]} 15. f4 {[%clk 0:01:38]}  Nc6 {[%clk 0:02:35]} 0-1


[Site "https://www.chess.com"]

[Event "Titled Tuesday Blitz February 21 Late 2023"]
[White "Curtis, John"]
[Black "Delorme, Axel"]
[WhiteFideId "3200256"]
[BlackFideId "632023"]
[WhiteElo "2292"]
[BlackElo "2483"]
[Result "1-0"]
[Round "10"]
[TimeControl "180+2"]
[Date "2023.02.21"]
[WhiteClock "0:00:16"]
[BlackClock "0:00:10"]

1. d4 {[%clk 0:02:57]}  d5 {[%clk 0:02:59]} 2. Nf3 {[%clk 0:02:55]}  e6 {[%clk 0:02:59]} 3. Bf4 {[%clk 0:02:54]}  c5 {[%clk 0:02:59]} 4. c3 {[%clk 0:02:47]}  Nc6 {[%clk 0:02:59]} 5. e3 {[%clk 0:02:47]}  Nf6 {[%clk 0:03:00]} 6. Nbd2 {[%clk 0:02:47]}  Nh5 {[%clk 0:02:59]} 7. Bg5 {[%clk 0:02:47]}  f6 {[%clk 0:02:58]} 8. Bh4 {[%clk 0:02:46]}  cxd4 {[%clk 0:02:57]} 9. exd4 {[%clk 0:02:45]}  Be7 {[%clk 0:02:30]} 10. Ng1 {[%clk 0:02:31]}  g6 {[%clk 0:02:26]} 11. g4 {[%clk 0:02:15]}  Ng7 {[%clk 0:02:20]} 12. Bg3 {[%clk 0:02:06]}  Bd7 {[%clk 0:02:15]} 13. h4 {[%clk 0:02:03]}  h5 {[%clk 0:02:14]} 14. Bd3 {[%clk 0:01:57]}  f5 {[%clk 0:01:55]} 15. g5 {[%clk 0:01:56]}  Kf7 {[%clk 0:01:46]} 16. Ndf3 {[%clk 0:01:48]}  Ne8 {[%clk 0:01:41]} 17. Ne5+ {[%clk 0:01:38]}  Nxe5 {[%clk 0:01:34]} 18. Bxe5 {[%clk 0:01:38]}  Rf8 {[%clk 0:01:31]} 19. f4 {[%clk 0:01:35]}  Nd6 {[%clk 0:01:29]} 20. Nf3 {[%clk 0:00:48]}  Ne4 {[%clk 0:01:26]} 21. Rh2 {[%clk 0:00:47]}  Qb6 {[%clk 0:01:21]} 22. Rc2 {[%clk 0:00:45]}  Bb5 {[%clk 0:01:19]} 23. Bxb5 {[%clk 0:00:43]}  Qxb5 {[%clk 0:01:19]} 24. Qe2 {[%clk 0:00:42]}  Qxe2+ {[%clk 0:01:04]} 25. Kxe2 {[%clk 0:00:42]}  Rfc8 {[%clk 0:01:04]} 26. Kd3 {[%clk 0:00:42]}  Rc6 {[%clk 0:00:56]} 27. Nd2 {[%clk 0:00:41]}  Rac8 {[%clk 0:00:53]} 28. Nxe4 {[%clk 0:00:41]}  fxe4+ {[%clk 0:00:51]} 29. Kd2 {[%clk 0:00:40]}  b5 {[%clk 0:00:51]} 30. Rac1 {[%clk 0:00:38]}  a5 {[%clk 0:00:49]} 31. a3 {[%clk 0:00:39]}  Ke8 {[%clk 0:00:46]} 32. Kd1 {[%clk 0:00:35]}  Kd7 {[%clk 0:00:46]} 33. Kd2 {[%clk 0:00:36]}  b4 {[%clk 0:00:26]} 34. cxb4 {[%clk 0:00:31]}  axb4 {[%clk 0:00:27]} 35. Rxc6 {[%clk 0:00:30]}  Rxc6 {[%clk 0:00:27]} 36. Rxc6 {[%clk 0:00:29]}  Kxc6 {[%clk 0:00:27]} 37. a4 {[%clk 0:00:28]}  b3 {[%clk 0:00:09]} 38. Kc3 {[%clk 0:00:27]}  Bd8 {[%clk 0:00:09]} 39. Kxb3 {[%clk 0:00:28]}  Ba5 {[%clk 0:00:09]} 40. f5 {[%clk 0:00:18]}  Be1 {[%clk 0:00:10]} 41. fxg6 {[%clk 0:00:16]} 1-0


[Site "https://www.chess.com"]

[Event "Titled Tuesday Blitz February 21 Late 2023"]
[White "Jian, Alex"]
[Black "Avgoustopoulos, Christian"]
[WhiteFideId "30901022"]
[BlackFideId "2122294"]
[WhiteElo "2031"]
[BlackElo "1969"]
[Result "0-1"]
[Round "10"]
[TimeControl "180+2"]
[Date "2023.02.21"]
[WhiteClock "0:00:03"]
[BlackClock "0:01:30"]

1. d4 {[%clk 0:00:50]}  d6 {[%clk 0:02:56]} 2. Nf3 {[%clk 0:00:49]}  Nd7 {[%clk 0:02:51]} 3. c4 {[%clk 0:00:47]}  Ngf6 {[%clk 0:02:50]} 4. Nc3 {[%clk 0:00:47]}  e5 {[%clk 0:02:50]} 5. e4 {[%clk 0:00:47]}  Be7 {[%clk 0:02:50]} 6. Be2 {[%clk 0:00:47]}  O-O {[%clk 0:02:49]} 7. O-O {[%clk 0:00:48]}  a6 {[%clk 0:02:42]} 8. d5 {[%clk 0:00:40]}  Nc5 {[%clk 0:02:34]} 9. Qc2 {[%clk 0:00:38]}  a5 {[%clk 0:02:32]} 10. Be3 {[%clk 0:00:37]}  b6 {[%clk 0:02:31]} 11. Nd2 {[%clk 0:00:36]}  Ng4 {[%clk 0:02:20]} 12. Bxg4 {[%clk 0:00:35]}  Bxg4 {[%clk 0:02:19]} 13. f3 {[%clk 0:00:36]}  Bd7 {[%clk 0:02:16]} 14. b3 {[%clk 0:00:36]}  f5 {[%clk 0:02:16]} 15. a3 {[%clk 0:00:35]}  f4 {[%clk 0:02:16]} 16. Bf2 {[%clk 0:00:35]}  g5 {[%clk 0:02:15]} 17. b4 {[%clk 0:00:35]}  axb4 {[%clk 0:02:15]} 18. axb4 {[%clk 0:00:36]}  Rxa1 {[%clk 0:02:10]} 19. Rxa1 {[%clk 0:00:37]}  Nb7 {[%clk 0:02:09]} 20. Nb3 {[%clk 0:00:37]}  g4 {[%clk 0:02:06]} 21. c5 {[%clk 0:00:19]}  bxc5 {[%clk 0:02:04]} 22. bxc5 {[%clk 0:00:20]}  Nxc5 {[%clk 0:02:04]} 23. Nxc5 {[%clk 0:00:20]}  dxc5 {[%clk 0:02:04]} 24. Kh1 {[%clk 0:00:16]}  gxf3 {[%clk 0:01:56]} 25. gxf3 {[%clk 0:00:16]}  Bh3 {[%clk 0:01:55]} 26. Rg1+ {[%clk 0:00:12]}  Kh8 {[%clk 0:01:54]} 27. Ne2 {[%clk 0:00:10]}  Rg8 {[%clk 0:01:52]} 28. Qc3 {[%clk 0:00:10]}  Bd6 {[%clk 0:01:49]} 29. Bxc5 {[%clk 0:00:09]}  Qh4 {[%clk 0:01:42]} 30. Rxg8+ {[%clk 0:00:03]}  Kxg8 {[%clk 0:01:42]} 31. Bxd6 {[%clk 0:00:03]}  Qf2 {[%clk 0:01:30]} 0-1


[Site "https://www.chess.com"]

[Event "Titled Tuesday Blitz February 21 Late 2023"]
[White "Deng, Henry"]
[Black "Li, Hui"]
[WhiteFideId "30965454"]
[BlackFideId "15400310"]
[WhiteElo "2168"]
[BlackElo "1963"]
[Result "1-0"]
[Round "10"]
[TimeControl "180+2"]
[Date "2023.02.21"]
[WhiteClock "0:01:00"]
[BlackClock "0:00:12"]

1. b3 {[%clk 0:03:00]}  d5 {[%clk 0:02:59]} 2. Bb2 {[%clk 0:03:01]}  c5 {[%clk 0:02:59]} 3. e3 {[%clk 0:03:01]}  Nf6 {[%clk 0:02:58]} 4. Nf3 {[%clk 0:03:01]}  e6 {[%clk 0:02:53]} 5. c4 {[%clk 0:03:02]}  Nc6 {[%clk 0:02:48]} 6. cxd5 {[%clk 0:03:02]}  Nxd5 {[%clk 0:02:47]} 7. Nc3 {[%clk 0:03:00]}  Nf6 {[%clk 0:02:42]} 8. Be2 {[%clk 0:02:57]}  Be7 {[%clk 0:02:41]} 9. O-O {[%clk 0:02:56]}  O-O {[%clk 0:02:42]} 10. a3 {[%clk 0:02:56]}  b6 {[%clk 0:02:41]} 11. Qc2 {[%clk 0:02:55]}  Bb7 {[%clk 0:02:41]} 12. Rfd1 {[%clk 0:02:53]}  Rc8 {[%clk 0:02:41]} 13. Rac1 {[%clk 0:02:52]}  Qc7 {[%clk 0:02:33]} 14. Qb1 {[%clk 0:02:51]}  Qb8 {[%clk 0:02:33]} 15. h3 {[%clk 0:02:49]}  Rfd8 {[%clk 0:02:32]} 16. Ne1 {[%clk 0:02:32]}  Na5 {[%clk 0:02:30]} 17. Qa2 {[%clk 0:02:30]}  Nd5 {[%clk 0:02:17]} 18. Bf3 {[%clk 0:02:14]}  Bf6 {[%clk 0:02:07]} 19. Ne4 {[%clk 0:02:06]}  Bxb2 {[%clk 0:02:01]} 20. Qxb2 {[%clk 0:02:07]}  Nc6 {[%clk 0:01:50]} 21. Ng3 {[%clk 0:01:48]}  Qe5 {[%clk 0:01:44]} 22. Qb1 {[%clk 0:01:46]}  g6 {[%clk 0:01:39]} 23. Nd3 {[%clk 0:01:46]}  Qg7 {[%clk 0:01:38]} 24. Nb2 {[%clk 0:01:39]}  Ne5 {[%clk 0:01:35]} 25. Be4 {[%clk 0:01:36]}  Bc6 {[%clk 0:01:26]} 26. d4 {[%clk 0:01:28]}  cxd4 {[%clk 0:01:26]} 27. Rxd4 {[%clk 0:01:28]}  Nf6 {[%clk 0:01:14]} 28. Bxc6 {[%clk 0:01:25]}  Rxd4 {[%clk 0:01:11]} 29. exd4 {[%clk 0:01:19]}  Nxc6 {[%clk 0:01:11]} 30. Rc4 {[%clk 0:01:11]}  Ne7 {[%clk 0:01:05]} 31. Qc2 {[%clk 0:01:10]}  Qf8 {[%clk 0:01:01]} 32. Nd3 {[%clk 0:01:05]}  Rxc4 {[%clk 0:00:57]} 33. bxc4 {[%clk 0:01:05]}  Qd8 {[%clk 0:00:53]} 34. Qc3 {[%clk 0:01:05]}  Nc6 {[%clk 0:00:45]} 35. Ne2 {[%clk 0:01:05]}  Ne4 {[%clk 0:00:39]} 36. Qb2 {[%clk 0:01:04]}  Qc7 {[%clk 0:00:27]} 37. d5 {[%clk 0:01:02]}  exd5 {[%clk 0:00:23]} 38. cxd5 {[%clk 0:01:01]}  Ne7 {[%clk 0:00:12]} 39. Qd4 {[%clk 0:01:00]} 1-0


[Site "https://www.chess.com"]

[Event "Titled Tuesday Blitz February 21 Late 2023"]
[White "Jenkins, Drake"]
[Black "Rottenwohrer Suarez, Juan"]
[WhiteFideId "2022397"]
[BlackFideId "32068182"]
[WhiteElo "2130"]
[BlackElo "2265"]
[Result "0-1"]
[Round "10"]
[TimeControl "180+2"]
[Date "2023.02.21"]
[WhiteClock "0:00:01"]
[BlackClock "0:00:36"]

1. Nf3 {[%clk 0:03:00]}  Nf6 {[%clk 0:02:59]} 2. c4 {[%clk 0:03:00]}  g6 {[%clk 0:03:00]} 3. Nc3 {[%clk 0:02:59]}  Bg7 {[%clk 0:03:00]} 4. g3 {[%clk 0:03:00]}  b6 {[%clk 0:02:59]} 5. Bg2 {[%clk 0:03:00]}  Bb7 {[%clk 0:03:00]} 6. O-O {[%clk 0:03:00]}  O-O {[%clk 0:03:01]} 7. d3 {[%clk 0:02:59]}  c5 {[%clk 0:03:00]} 8. a3 {[%clk 0:02:56]}  d5 {[%clk 0:03:00]} 9. cxd5 {[%clk 0:02:54]}  Nxd5 {[%clk 0:03:01]} 10. Bd2 {[%clk 0:02:52]}  e6 {[%clk 0:02:37]} 11. Rb1 {[%clk 0:02:51]}  a5 {[%clk 0:02:28]} 12. Nxd5 {[%clk 0:02:39]}  Bxd5 {[%clk 0:02:29]} 13. Bc3 {[%clk 0:02:39]}  a4 {[%clk 0:02:21]} 14. Bxg7 {[%clk 0:02:34]}  Kxg7 {[%clk 0:02:22]} 15. h4 {[%clk 0:02:25]}  h6 {[%clk 0:02:20]} 16. Qd2 {[%clk 0:02:17]}  Nd7 {[%clk 0:02:17]} 17. d4 {[%clk 0:02:03]}  Qf6 {[%clk 0:01:45]} 18. Rbc1 {[%clk 0:01:38]}  Rac8 {[%clk 0:01:42]} 19. dxc5 {[%clk 0:01:38]}  Nxc5 {[%clk 0:01:42]} 20. Qd4 {[%clk 0:01:32]}  Nb3 {[%clk 0:01:34]} 21. Qxf6+ {[%clk 0:01:31]}  Kxf6 {[%clk 0:01:34]} 22. Rxc8 {[%clk 0:00:56]}  Rxc8 {[%clk 0:01:35]} 23. Rb1 {[%clk 0:00:20]}  Rc2 {[%clk 0:01:23]} 24. Bf1 {[%clk 0:00:19]}  Bxf3 {[%clk 0:01:16]} 25. exf3 {[%clk 0:00:19]}  Nd2 {[%clk 0:01:16]} 26. Rd1 {[%clk 0:00:18]}  Rxb2 {[%clk 0:01:16]} 27. Kg2 {[%clk 0:00:18]}  Nxf1 {[%clk 0:01:05]} 28. Kxf1 {[%clk 0:00:15]}  Rb3 {[%clk 0:01:05]} 29. Ra1 {[%clk 0:00:14]}  Rxf3 {[%clk 0:01:05]} 30. Rb1 {[%clk 0:00:14]}  Rb3 {[%clk 0:01:01]} 31. Ra1 {[%clk 0:00:14]}  Ke5 {[%clk 0:00:58]} 32. Kg2 {[%clk 0:00:13]}  Kd4 {[%clk 0:00:59]} 33. h5 {[%clk 0:00:13]}  gxh5 {[%clk 0:00:58]} 34. Rh1 {[%clk 0:00:12]}  Rxa3 {[%clk 0:00:57]} 35. Rxh5 {[%clk 0:00:12]}  Kc4 {[%clk 0:00:45]} 36. Rxh6 {[%clk 0:00:11]}  Rd3 {[%clk 0:00:44]} 37. Rf6 {[%clk 0:00:06]}  a3 {[%clk 0:00:40]} 38. Rxf7 {[%clk 0:00:06]}  a2 {[%clk 0:00:39]} 39. Ra7 {[%clk 0:00:06]}  Kb3 {[%clk 0:00:39]} 40. g4 {[%clk 0:00:06]}  Rd1 {[%clk 0:00:38]} 41. g5 {[%clk 0:00:05]}  a1=Q {[%clk 0:00:37]} 42. Rxa1 {[%clk 0:00:04]}  Rxa1 {[%clk 0:00:37]} 43. Kg3 {[%clk 0:00:03]}  Kc4 {[%clk 0:00:38]} 44. g6 {[%clk 0:00:03]}  Kd5 {[%clk 0:00:37]} 45. Kg4 {[%clk 0:00:01]}  b5 {[%clk 0:00:36]} 0-1


[Site "https://www.chess.com"]